Cogmind - Beta 15 @@@ ROGUE MODE // 2025.07.15 @ 22:05:18 Player: Helmuc Result: Destroyed by H-55 Commando with Gauss Rifle Performance ------------- Evolutions (2) 1000 Regions Visited (5) 1000 Robots Destroyed (23) 115 Value Destroyed (720) 720 Prototype IDs (2) 40 Alien Tech Used (0) 0 Bonus (0) 0 TOTAL SCORE: 2875 Bonus ------- None Cogmind --------- Core Integrity 0/550 Matter 219/300 Energy 100/100 System Corruption 0% Temperature Cool (0) Movement Core (50) Location -8/Storage Parts ------- > --- POWER (2) -------- (None) > --- PROPULSION (2) --- (None) > --- UTILITY (3) ------ Advanced Weight Redist. System > --- WEAPON (4) ------- (None) > --- INVENTORY (5) ---- Hover Unit Improved Hover Unit Improved Hover Unit Medium Matter Pod (100) Peak State ------------ > --- POWER ------------ Light Nuclear Core > --- PROPULSION ------- Wheel Wheel > --- UTILITY ---------- Advanced Weight Redist. System Advanced Weight Redist. System > --- WEAPON ----------- Flak Cannon Flak Cannon Flak Cannon Flak Cannon > --- INVENTORY -------- Hover Unit Improved Hover Unit Improved Hover Unit Medium Matter Pod [Rating: 23] Favorites ----------- Power Light Nuclear Core Engine Light Ion Engine Power Core Light Nuclear Core Propulsion Wheel Leg Aluminum Leg Wheel Wheel Hover Unit Improved Hover Unit Utility Hardened Light Armor Plating Device Advanced Weight Redist. System Protection Hardened Light Armor Plating Weapon Flak Cannon Energy Gun Beam Rifle Ballistic Gun Light Assault Rifle Ballistic Cannon Flak Cannon Build | -11 -10 -9 -9 -8 -8 ------- Run | Yrd Mat Mat Min Mat Sto Slots Evolved 4 | . . 2 . 2 . Power 1 | . . . . 1 . Propulsion . | . . . . . . Utility 1 | . . . . 1 . Weapon 2 | . . 2 . . . Parts Attached 25 | 10 . 14 1 . . Power 3 | 1 . 2 . . . Engine 2 | 1 . 1 . . . Core 1 | . . 1 . . . Reactor . | . . . . . . Propulsion 7 | 5 . 2 . . . Treads . | . . . . . . Leg 3 | 3 . . . . . Wheel 2 | 2 . . . . . Hover 2 | . . 2 . . . Flight . | . . . . . . Utility 7 | 2 . 4 1 . . Device 5 | 2 . 2 1 . . Storage . | . . . . . . Processor . | . . . . . . Hackware . | . . . . . . Protection 2 | . . 2 . . . Artifact . | . . . . . . Weapon 8 | 2 . 6 . . . Energy Gun 3 | 1 . 2 . . . Energy Cannon . | . . . . . . Ballistic Gun 1 | 1 . . . . . Ballistic Cannon 4 | . . 4 . . . Launcher . | . . . . . . Special Weapon . | . . . . . . Impact Weapon . | . . . . . . Slashing Weapon . | . . . . . . Piercing Weapon . | . . . . . . Special Melee Weapon . | . . . . . . Unidentified Prototypes 2 | . . 1 1 . . Corrupted Parts 1 | 1 . . . . . System Corruption 2 | 2 . . . . . Parts Lost 8 | . . 1 . 3 4 Power 1 | . . . . 1 . Propulsion 2 | . . . . . 2 Utility 1 | . . . . 1 . Weapon 4 | . . 1 . 1 2 Highest Loss Streak 4 | . . 1 . 3 4 To Critical Strikes . | . . . . . . Average Backups 4 | 1 4 4 4 4 4 Power . | . . . . . . Propulsion 2 | 1 3 3 3 3 3 Utility . | . . 1 1 1 1 Weapon . | . 1 . . . . Tool/Special . | . . . . . . Unused Backups 4 | . . 2 . . 2 Power 1 | . . 1 . . . Propulsion 1 | . . . . . 1 Utility 1 | . . . . . 1 Weapon 1 | . . 1 . . . Tool/Special . | . . . . . . Average Slot Usage (%) 78 | . 100 83 88 57 35 Engine 3 | . 14 3 . . . Core 6 | . . 7 11 4 . Leg 5 | . 28 6 . . . Wheel 15 | . . 15 22 18 14 Device 12 | . 28 11 11 9 9 Protection 8 | . . 10 11 4 . Energy Gun 7 | . 14 5 11 9 6 Ballistic Gun 3 | . 14 3 . . . Ballistic Cannon 17 | . . 20 22 12 6 Peak Build Rating 23 | 9 9 23 23 18 10 Average Rating 13 | 3 9 15 18 13 7 On Entrance 10 | . 9 9 18 18 10 Naked Turns . | . . . . . . Heaviest Build 39 | 8 8 39 25 25 9 Greatest Support 29 | 20 20 29 29 29 20 Greatest Overweight (x) 2 | . . 2 . . . Average Overweight (x) . | . . . . . . Largest Inventory Capacity 5 | 5 5 5 5 5 5 Average Capacity 5 | 5 5 5 5 5 5 Most Carried 5 | 5 5 5 5 4 4 Average Carried 4 | 2 4 4 4 4 4 Final Capacity 5 | 5 5 5 5 5 5 Final Carried 5 | 4 5 5 4 4 4 Class Distribution -------------------- 57% | Tank 42% | Mutant Dominant Class ---------------- Mutant | -10/Materials Tank | -9/Materials Tank | -9/Mines Mutant | -8/Materials Mutant | -8/Storage Resources | -11 -10 -9 -9 -8 -8 ----------- Run | Yrd Mat Mat Min Mat Sto Matter Collected 1008 | 343 113 382 155 15 . Remotely . | . . . . . . Salvage Created 592 | 46 48 456 42 . . Parts 39 | 4 4 28 3 . . Haulers Intercepted . | . . . . . . Recyclers Shooed . | . . . . . . Parts Field Recycled . | . . . . . . Retrieved Matter . | . . . . . . Parts Self-Destructed . | . . . . . . Prevented . | . . . . . . Kills | -11 -10 -9 -9 -8 -8 ------- Run | Yrd Mat Mat Min Mat Sto Combat Hostiles Destroyed 19 | 1 1 15 1 1 . Guns 7 | 1 1 4 . 1 . Cannons 12 | . . 11 1 . . Classes Destroyed 6 | 2 . 4 . . . Tunneler 1 | 1 . . . . . Operator 1 | . . 1 . . . Watcher 2 | . . 2 . . . Swarmer 4 | . . 4 . . . Grunt 9 | 1 1 6 . 1 . Sentry 6 | . . 5 1 . . Best Kill Streak 5 | 2 1 5 1 1 . Combat Bots Only 5 | 1 1 5 1 1 . Max Kills in Single Turn 2 | 2 1 2 1 1 . Gunslinging . | . . . . . . Exploded . | . . . . . . Melee . | . . . . . . Uniques/NPCs Destroyed . | . . . . . . Combat | -11 -10 -9 -9 -8 -8 -------- Run | Yrd Mat Mat Min Mat Sto Hostile Shots Fired 142 | 6 3 58 . 18 57 Missed 33 | 2 . 14 . 6 11 Hits 109 | 4 3 44 . 12 46 Projectile 109 | 4 3 44 . 12 46 AOE 1 | . . . . 1 . Critical Strikes 3 | . . 1 . . 2 Damage Taken 1632 | 45 35 551 . 294 707 Core 597 | . 11 28 . 61 497 Absorbed by Shields . | . . . . . . Core Remaining (%) 96 | 100 95 . 93 . . Volleys Fired 54 | 4 5 33 1 8 3 Largest 4 | 2 2 4 3 3 2 Hottest 167 | 60 60 167 130 130 93 Shots Fired 127 | 8 10 83 3 18 5 Gun 57 | 8 10 27 1 8 3 Cannon 70 | . . 56 2 10 2 Launcher . | . . . . . . Special . | . . . . . . Kinetic 92 | 4 5 69 2 10 2 Thermal 14 | . . 2 1 8 3 Explosive . | . . . . . . Electromagnetic 21 | 4 5 12 . . . Robot Hit Streak 13 | 2 3 13 4 5 2 Robot Miss Streak 9 | 1 4 9 3 6 2 Penetration Max . | . . . . . . Secondary Targets 1 | . . 1 . . . Max Gunslinging Chain 1 | . . 1 . . . Shots Hit Robots 84 | 5 4 61 2 10 2 Core Hits 70 | 4 2 50 5 9 . Critical Kills . | . . . . . . Critical Parts Destroyed . | . . . . . . Critical Strikes 4 | . . 2 . 1 1 Burn 2 | . . . . 1 1 Corrupt 2 | . . 2 . . . Melee Attacks . | . . . . . . Impact . | . . . . . . Slashing . | . . . . . . Piercing . | . . . . . . Sneak Attacks . | . . . . . . Combat Hostiles . | . . . . . . Follow-up Attacks . | . . . . . . Damage Inflicted 1361 | 159 47 903 51 168 33 Guns 341 | 66 47 185 . 28 15 Cannons 890 | . . 681 51 140 18 Explosions 130 | 93 . 37 . . . Melee . | . . . . . . Ramming . | . . . . . . Kinetic 974 | 24 7 734 51 140 18 Thermal 187 | 93 . 51 . 28 15 Explosive . | . . . . . . Electromagnetic 200 | 42 40 118 . . . Impact . | . . . . . . Slashing . | . . . . . . Piercing . | . . . . . . Highest Corruption 2 | 2 2 . . . . Average Corruption 2 | 2 2 . . . . Corruption Purged . | . . . . . . Corruption Blocked . | . . . . . . Effects 4 | . 4 . . . . Message Errors 1 | . 1 . . . . Matter Fused 1 | . 1 . . . . Energy Discharges 1 | . 1 . . . . Data Loss (minor) 1 | . 1 . . . . Overload Shots . | . . . . . . Overflow Damage . | . . . . . . Projectiles . | . . . . . . Explosions . | . . . . . . Melee . | . . . . . . Knockbacks 17 | . . 13 . 4 . Impact . | . . . . . . Kinetic 13 | . . 9 . 4 . Secondary 4 | . . 4 . . . Self-Inflicted Damage . | . . . . . . Shots . | . . . . . . Rammed . | . . . . . . Targets Rammed . | . . . . . . Kicked . | . . . . . . Crushed . | . . . . . . Highest Temperature 274 | 58 6 260 81 274 12 Average Temperature 105 | 33 6 100 40 185 9 Received Heat Transfer 447 | 24 18 168 . 120 117 Effects 2 | . . 1 . 1 . Energy Bleed 1 | . . . . 1 . Interference 1 | . . 1 . . . Siege Activations . | . . . . . . Martial Activations . | . . . . . . Shielding Activations . | . . . . . . Robots Disrupted . | . . . . . . Combat Hostiles . | . . . . . . Robots Corrupted . | . . . . . . Combat Hostiles . | . . . . . . Parts Fried . | . . . . . . Impact Corruptions . | . . . . . . Robots Melted . | . . . . . . Combat Hostiles . | . . . . . . Parts Melted . | . . . . . . Heat Transferred 546 | 200 . 87 . 148 111 Parts Sabotaged . | . . . . . . Parts Stolen . | . . . . . . Parts Stripped . | . . . . . . Power Chain Reactions 2 | 1 . 1 . . . Alert | -11 -10 -9 -9 -8 -8 ------- Run | Yrd Mat Mat Min Mat Sto Maximum Alert Level . | . . . . . . Low Security (%) 100 | 100 100 100 100 100 100 Level 1 . | . . . . . . Level 2 . | . . . . . . Level 3 . | . . . . . . Level 4 . | . . . . . . Level 5 . | . . . . . . High Security . | . . . . . . Max Security . | . . . . . . Peak Influence 186 | 25 30 186 69 30 3 Initial 69 | . 9 8 69 . 3 Average 32 | 3 11 50 31 7 . Influence Increases 544 | 25 30 439 20 30 . Destroy 0b10 Robot/C 380 | 20 20 300 20 20 . Destroy 0b10 Robot/NC 20 | 5 . 15 . . . Destroy Leader 114 | . 10 94 . 10 . Disable Machine 15 | . . 15 . . . Partial Spotted 15 | . . 15 . . . Influence Decreases 544 | 10 25 281 198 20 10 Entered New Map 134 | . 6 12 109 . 7 Time Decay 400 | 10 19 259 89 20 3 Lost Part 10 | . . 10 . . . Squads Dispatched 6 | . 1 2 . 3 . Investigation 2 | . 1 1 . . . Extermination . | . . . . . . Reinforcement 1 | . . 1 . . . Assault 2 | . . . . 2 . Garrison 1 | . . . . 1 . Intercept . | . . . . . . Searches Triggered . | . . . . . . Construction Impeded . | . . . . . . Haulers Reinforced . | . . . . . . Active Scanning Responses . | . . . . . . Cargo Convoy Interrupts . | . . . . . . Stealth | -11 -10 -9 -9 -8 -8 --------- Run | Yrd Mat Mat Min Mat Sto Distress Signals 3 | . . 3 . . . Communications Jammed . | . . . . . . Distress Signals . | . . . . . . Times Spotted 39 | 1 1 26 2 3 6 Peak Tracking Total 8 | 1 1 4 2 3 8 Tactical Retreats . | . . . . . . Traps | -11 -10 -9 -9 -8 -8 ------- Run | Yrd Mat Mat Min Mat Sto Traps Triggered . | . . . . . . Indirectly . | . . . . . . Trap Hack Attempts . | . . . . . . Triggered . | . . . . . . Disarmed . | . . . . . . Reprogrammed . | . . . . . . Reused . | . . . . . . Traps Extracted . | . . . . . . Installed . | . . . . . . Triggered . | . . . . . . Machines | -11 -10 -9 -9 -8 -8 ---------- Run | Yrd Mat Mat Min Mat Sto Machines Disabled 2 | . . 1 1 . . Max in Single Turn 1 | . . 1 1 . . Garrison Access 1 | . . . . 1 . Machines Repaired . | . . . . . . Machines Dismantled . | . . . . . . Machines Sabotaged . | . . . . . . Overloaded Fab Kills . | . . . . . . Hacking | -11 -10 -9 -9 -8 -8 --------- Run | Yrd Mat Mat Min Mat Sto Machines Accessed 4 | . 1 2 1 . . Terminals 2 | . 1 1 . . . Fabricators . | . . . . . . Repair Stations . | . . . . . . Recycling Units 1 | . . 1 . . . Scanalyzers . | . . . . . . Garrison Access . | . . . . . . Total Hacks 11 | . 3 7 1 . . Successful 8 | . 1 6 1 . . Failed 3 | . 2 1 . . . Catastrophic 1 | . 1 . . . . Database Lockouts . | . . . . . . Manual 1 | . . 1 . . . Terminals 7 | . 3 4 . . . Fabricators . | . . . . . . Repair Stations . | . . . . . . Recycling Units 3 | . . 3 . . . Scanalyzers . | . . . . . . Garrison Access . | . . . . . . Terminal Hacks 5 | . 1 3 1 . . Record 4 | . 1 3 . . . Open Door 1 | . . . 1 . . Fabricator Hacks . | . . . . . . Repair Station Hacks . | . . . . . . Recycling Unit Hacks 3 | . . 3 . . . Recycle Component 1 | . . 1 . . . Process 1 | . . 1 . . . Report Inventory 1 | . . 1 . . . Scanalyzer . | . . . . . . Garrison Access Hacks . | . . . . . . Unauthorized Hacks . | . . . . . . Terminals . | . . . . . . Fabricators . | . . . . . . Repair Stations . | . . . . . . Recycling Units . | . . . . . . Scanalyzers . | . . . . . . Garrison Access . | . . . . . . Data Cores Recovered 1 | . . 1 . . . Used . | . . . . . . Hacking Detections 2 | . 1 1 . . . Full Trace Events 2 | . 1 1 . . . Feedback Events . | . . . . . . Feedback Blocked . | . . . . . . Robot Schematics Acquired . | . . . . . . Robots Built . | . . . . . . Authchips . | . . . . . . Time . | . . . . . . Total Robot Build Rating . | . . . . . . Part Schematics Acquired . | . . . . . . Parts Built . | . . . . . . Authchips . | . . . . . . Time . | . . . . . . Total Part Build Rating . | . . . . . . Parts Repaired . | . . . . . . Time . | . . . . . . Parts Recycled 1 | . . 1 . . . Recycled Matter 22 | . . 22 . . . Retrieved Matter . | . . . . . . Retrieved Components . | . . . . . . Parts Scanalyzed . | . . . . . . Part Schematics Acquired . | . . . . . . Parts Damaged . | . . . . . . Bothacking | -11 -10 -9 -9 -8 -8 ------------ Run | Yrd Mat Mat Min Mat Sto Used RIF Installer . | . . . . . . Robots Hacked . | . . . . . . Non-combat . | . . . . . . Combat . | . . . . . . Robot Hacks Applied . | . . . . . . Relay Couplers Released 2 | . . . . 2 . Machine Destruction 2 | . . . . 2 . Fabnet Peak Effective % . | . . . . . . Robots Rewired . | . . . . . . Allies Hacked . | . . . . . . Hacks Repelled . | . . . . . . Allies | -11 -10 -9 -9 -8 -8 -------- Run | Yrd Mat Mat Min Mat Sto Total Allies . | . . . . . . Largest Group . | . . . . . . Highest-Rated Group . | . . . . . . Highest-Rated Ally . | . . . . . . Total Orders . | . . . . . . Ally Attacks . | . . . . . . Total Damage . | . . . . . . Kills . | . . . . . . Allies Corrupted . | . . . . . . Allies Melted . | . . . . . . Intel | -11 -10 -9 -9 -8 -8 ------- Run | Yrd Mat Mat Min Mat Sto Active Infowar (turns) 202 | 9 77 116 . . . Terrain 202 | 9 77 116 . . . Robot Analysis Total . | . . . . . . Derelict Logs Recovered 1 | . . . 1 . . Drone Launches . | . . . . . . Drone Recoveries . | . . . . . . Exploration | -11 -10 -9 -9 -8 -8 ------------- Run | Yrd Mat Mat Min Mat Sto Turns Passed 1278 | 136 77 637 222 95 111 Spaces Moved 1060 | 79 50 497 267 85 82 Core 20 | 20 . . . . . Treads . | . . . . . . Legs 218 | 54 50 114 . . . Wheels 821 | 5 . 382 267 85 82 Hover 1 | . . 1 . . . Flight . | . . . . . . Fastest Speed 50 | 50 120 80 80 80 80 Average Speed 87 | 99 120 89 80 80 80 Slowest Speed 180 | 120 120 180 80 80 80 Overloaded Moves . | . . . . . . Propulsion Burnouts . | . . . . . . Robots Hopped . | . . . . . . Potential Cave-ins . | . . . . . . Cave-ins Triggered . | . . . . . . Exploration Rate (%) 26 | 8 16 47 59 12 18 Regions Visited 5 Branch Regions 2 Pre-discovered Areas . | . . . . . . Known Exits Taken . | . . . . . . Unknown Exits Taken 5 | 1 1 1 1 1 . Scrap Searched 1 | . . . 1 . . Spaces Dug . | . . . . . . Terrain Destroyed . | . . . . . . Melee . | . . . . . . Projectile . | . . . . . . AOE . | . . . . . . Terrain Rammed . | . . . . . . Walls Destroyed . | . . . . . . Machines Disabled . | . . . . . . Actions | -11 -10 -9 -9 -8 -8 --------- Run | Yrd Mat Mat Min Mat Sto Total 1304 | 129 58 628 272 95 122 Wait 96 | 18 3 35 . 3 37 Move 1055 | 78 49 496 266 84 82 Hop . | . . . . . . Pick Up 32 | 11 1 19 1 . . Fast Attach 5 | . . 5 . . . Attach 23 | 11 . 12 . . . Detach 6 | 4 . 2 . . . Swap 10 | 3 . 5 2 . . Drop 23 | . . 21 2 . . Fire 54 | 4 5 33 1 8 3 Melee . | . . . . . . Ram . | . . . . . . Kick . | . . . . . . Crush . | . . . . . . Escape Stasis . | . . . . . . Rewire . | . . . . . . Trap . | . . . . . . Miscellaneous . | . . . . . . Route ------- -11/Scrapyard -10/Materials -9/Materials -9/Mines -8/Materials -8/Storage History --------- Turn | Location | Event 2 | -11/Scrapyard | Met Revision 17 94 | -11/Scrapyard | Discovered new exit (range 8) 137 | -11/Scrapyard | Entered Materials 193 | -10/Materials | Discovered new exit (range 15) 214 | -10/Materials | Entered another Materials area 214 | -9/Materials | Evolved 2 slots: Weapon x2 306 | -9/Materials | Build established: Mutant 688 | -9/Materials | Build established: Tank 839 | -9/Materials | Discovered new exit (range 16) 851 | -9/Materials | Entered Mines 853 | -9/Mines | Met a Derelict bent on vengeance 935 | -9/Mines | Joined a pair of Derelicts in attacking an 0b10 outpost 980 | -9/Mines | Learned Materials stockpile data 1041 | -9/Mines | Discovered new exit (range 12) 1045 | -9/Mines | Found the Drone Emporium 1050 | -9/Mines | Found Prototype Device 1051 | -9/Mines | Identified Thief Drone Bay 1073 | -9/Mines | Entered Materials 1073 | -8/Materials | Evolved 2 slots: Power x1, Utility x1 1110 | -8/Materials | Garrison activated, responded to threat 1132 | -8/Materials | Discovered new exit (range 15) 1145 | -8/Materials | Lost 3 parts (1p1u1w) 1168 | -8/Materials | Entered Storage 1262 | -8/Storage | Core integrity fell below 50% 1274 | -8/Storage | Core integrity fell below 20% 1279 | -8/Storage | Destroyed by H-55 Commando with Gauss Rifle Last Messages --------------- Slug penetrates Wall. Penetrated by Slug. Wheel destroyed. Critical hit (Burn: +37). Penetrated by Slug. Y-45 Defender destroyed. Penetrated by Slug. Y-45 Defender destroyed. Slug penetrates Storage Shell. Penetrated by Slug. M-13 Machinist repairs Y-45 Defender. R-06 Scavenger collects Heat Sink. Penetrated by Slug. R-06 Scavenger collects Lgt. Treads. R-06 Scavenger collects Hvy. Assault Rifle. Penetrated by Slug. Y-45 Defender suffers critical hit (Destroy). Critical hit (Burn: +37). Penetrated by Slug. [Achievement: First Step to Greatness] Map ----- +----------------------------------------------------+ | ???????????????# #????????????????????????????? | | ???????????????# #????????????????????????????? | | ???????????????# #????????????????????????????? | | ???????????????# #????????????????????????????? | | ???????????????# #????????????????????????????? | | ???????????????+ #????????????????????????????? | | ???????????????# #????????????????????????????? | | ???????????????# #????????????????????????????? | | ???????????????# #????????????????????????????? | | ???????????????# #????????????????????????????? | | ???????????????# #????????????????????????????? | | ???????????????# #????????????????????????????? | | ???????????????# #????????????????????????????? | | ???????????????# #????????????????????????????? | | ???????????????# #????????????????????????????? | | ???????????????# #????????????????????????????? | | ???????????????# #????????????????????????????? | | ???????####????# #????????????????????????????? | | ???????# #### #????????????????????????????? | | ???????+ #????????????????????????????? | | ???????# #????????????????????????????? | | ???????# #### #????????????????????????????? | | ???????## ?????# #????????????????????????????? | | ???????????????# #????????????????????????????? | | ???????????????# ##########????##?????????????? | | ???????????????# # rrY@hY #?? #?????????????? | | ???????????????# #m""""""Y# #?????????????? | | ???????????????# # "????" / #?????????????? | | ???????????????# # "????" # #?????????????? | | ???????????????# + """""" # #?????????????? | | ???????????????# # #?#####?????????????? | | ???????????????# + #???????????????????? | | ???????????????# # #???????????????????? | | ???????????????# # #???????????????????? | | ???????????????##/###########???????????????????? | | ???????????????? ?????????????????????????????? | | ???????????????? ?????????????????????????????? | | ???????????????""" ?????????????????????????????? | | ???????????????""" ?????????????????????????????? | | ???????????????""" ?????????????????????????????? | | ????????????????? ?????????????????????????????? | | ?????????????????? ?????????????????????????????? | | ?????????????????? ?????????????????????????????? | | ?????????????????? ?????????????????????????????? | | ??????????????????#?????????????????????????????? | | ????????????????????????????????????????????????? | | | | | | | | | +----------------------------------------------------+ Best States ------------- Heat Dissipation 38 Energy Generation 14 Energy Capacity 160 Matter Stores 300 Matter Capacity 300 Sight Range 16 Terrain Scan Range 16 Terrain Scan Density 10 Additional Mass Support 9 Armor Coverage 300 Evasion (%) 55 Item Schematics ----------------- None Robot Schematics ------------------ None Fabricated ------------ Nothing Repaired ---------- Nothing Alien Tech Used ----------------- None Achievements -------------- Crack Shot First Step to Greatness More Dakka Please One Hack Too Far Risk Taker Storm Trooper Troublemaker Uninvited Guest Challenges ------------ None Game ------ Seed ZhirovDisruptionCompressor Manual? 0 Play Time 01:10:01 Cumulative 1.1 hours Start 2025.07.15 @ 20:41:22 End 2025.07.15 @ 22:05:18 Sessions 1 Manual Loads 0 Difficulty Rogue Special Mode None Game No. 1 Rogue 1 Adventurer 0 Explorer 0 Win Type - Total 0 Types 0/0/0/0/0/0/0/0/0/0 Lore% 0 Gallery% 1 Achievement% 3 Wizard Run 0 Options --------- Layout 1 ASCII 0 Keyboard 0 Movement Mouse Keybinds 0 Fullscreen 1 Font 32/SmallcapsGlow Map View 50x35 Zoom Use 0% Tactical HUD 0 Map Filters NONE Filters NONE Steam 1 RUN: 95b0b26e-8b64-407b-b639-98fb67ab7d64